[Event "48th Ciutat de Badalona Open 2024"]
[Site "Badalona"]
[Date "2024.08.08"]
[Round "7.7"]
[White "Boggarapu, Kritan"]
[Black "Vaibhav Jayant Raut"]
[Result "0-1"]
[ECO "B33"]
[WhiteElo "1971"]
[BlackElo "2101"]
[Annotator "RC"]
[PlyCount "194"]
[EventDate "2024.07.29"]
[EventType "swiss"]
[EventCountry "ESP"]
[SourceTitle "playchess.com"]
[Source "ChessBase"]
[SourceQuality "1"]
[TimeControl "5400+30"]

1. e4 {[%emt 0:00:11]} c5 {[%emt 0:00:11]} 2. Nf3 {[%emt 0:00:04]} Nc6 {[%emt 0:00:06]} 3. d4 {[%emt 0:00:08]} cxd4 {[%emt 0:00:18]} 4. Nxd4 {[%emt 0:00:05]} Nf6 {[%emt 0:00:07]} 5. Nc3 {[%emt 0:00:08]} e5 {[%emt 0:00:08]} 6. Ndb5 {[%emt 0:00:07]} d6 {[%emt 0:00:10]} 7. Bg5 {[%emt 0:00:15]} a6 {[%emt 0:00:16]} 8. Na3 {[%emt 0:00:07]} b5 {[%emt 0:00:17]} 9. Nab1 {[%emt 0:00:17]} Be7 {[%emt 0:00:31]} 10. Bxf6 {[%emt 0:00:12]} Bxf6 {[%emt 0:00:08]} 11. a4 {[%emt 0:00:07]} b4 {[%emt 0:00:08]} 12. Nd5 {[%emt 0:00:07]} O-O {[%emt 0:00:42]} 13. Bc4 {[%emt 0:00:09]} Bg5 {[%emt 0:00:11]} 14. O-O {[%emt 0:00:10]} Be6 {[%emt 0:00:23]} 15. Qd3 {[%emt 0:00:13]} a5 {[%emt 0:02:00]} 16. c3 {[%emt 0:01:37]} bxc3 {[%emt 0:03:30]} 17. bxc3 {[%emt 0:05:05]} Nb8 {[%emt 0:02:58]} 18. Nd2 {[%emt 0:22:13]} Nd7 {[%emt 0:00:37]} 19. Rfd1 {[%emt 0:12:17]} Nc5 {[%emt 0:00:25]} 20. Qe2 {[%emt 0:00:06]} Rb8 {[%emt 0:00:59]} 21. Nf3 {[%emt 0:02:23]} Bh6 {[%emt 0:02:20]} 22. Ne1 {[%emt 0:03:50]} Qh4 {[%emt 0:06:38]} 23. f3 {[%emt 0:02:11]} Rfc8 {[%emt 0:00:46]} 24. Ra3 {[%emt 0:09:55]} Kh8 {[%emt 0:07:40]} 25. g3 {[%emt 0:03:26]} Qd8 {[%emt 0:14:12]} 26. Bb5 {[%emt 0:15:06]} f5 {[%emt 0:03:52]} 27. exf5 {[%emt 0:00:47]} Bxf5 {[%emt 0:00:31]} 28. Ng2 {[%emt 0:02:41]} Qf8 {[%emt 0:03:24]} 29. Nge3 {[%emt 0:02:24]} Be6 {[%emt 0:01:30]} 30. Kg2 {[%emt 0:00:35]} Qf7 {[%emt 0:00:32]} 31. c4 {[%emt 0:04:16]} Qh5 {[%emt 0:05:17]} 32. Ng4 {[%emt 0:01:10]} Rf8 {[%emt 0:45:43]} 33. h3 {[%emt 0:01:32]} Bg5 {[%emt 0:00:00]} 34. Nc3 {[%emt 0:01:11]} Qg6 {[%emt 0:00:00]} 35. Rxd6 {[%emt 0:03:39]} h5 {[%emt 0:00:00]} 36. Nf2 {[%emt 0:01:45]} Be7 {[%emt 0:00:00]} 37. Rd1 {[%emt 0:00:39]} e4 {[%emt 0:00:00]} 38. Nd5 {[%emt 0:02:15]} Bd6 {[%emt 0:00:00]} 39. f4 {[%emt 0:00:46]} Nd3 {[%emt 0:00:00]} 40. Raxd3 {[%emt 0:02:32]} exd3 {[%emt 0:00:00]} 41. Qxd3 {[%emt 0:01:05]} Bf5 {[%emt 0:00:00]} 42. Qf3 {[%emt 0:00:38]} Bc5 {[%emt 0:00:00]} 43. Kh2 {[%emt 0:01:09]} Bxf2 {[%emt 0:00:00]} 44. Qxf2 {[%emt 0:00:08]} Bxh3 {[%emt 0:00:00]} 45. Re1 {[%emt 0:01:32]} Be6 {[%emt 0:00:00]} 46. Nc3 {[%emt 0:01:28]} Rbc8 {[%emt 0:00:00]} 47. c5 {[%emt 0:00:28]} h4 {[%emt 0:00:00]} 48. gxh4 {[%emt 0:00:35]} Qf5 {[%emt 0:00:00]} 49. Ne4 {[%emt 0:00:38]} Qh3+ {[%emt 0:00:00]} 50. Kg1 {[%emt 0:01:08]} Bd5 {[%emt 0:09:00]} 51. Qg3 {[%emt 0:00:30]} Qxg3+ {[%emt 0:00:00]} 52. Nxg3 {[%emt 0:00:30]} Rxf4 {[%emt 0:01:00]} 53. Re5 {[%emt 0:00:00]} Rxc5 {[%emt 0:00:00]} 54. Rh5+ Kg8 {[%emt 0:00:00]} 55. Ne2 Rg4+ {[%emt 0:00:00]} 56. Kf2 {[%emt 0:00:33]} g6 {[%emt 0:00:00]} 57. Re5 {[%emt 0:01:24]} Kf7 58. h5 {[%emt 0:00:28]} Kf6 {[%emt 0:00:00]} 59. Re3 gxh5 {[%emt 0:03:30]} 60. Ng3 {[%emt 0:01:35]} Rh4 {[%emt 0:00:00]} 61. Be2 {[%emt 0:00:00]} Bc6 62. Ke1 {[%emt 0:01:00]} Rxa4 {[%emt 0:00:37]} 63. Nxh5+ {[%emt 0:00:00]} Kg5 {[%emt 0:00:26]} 64. Ng3 {[%emt 0:00:00]} Ra1+ {[%emt 0:00:30]} 65. Kf2 {[%emt 0:00:03]} a4 {[%emt 0:00:25]} 66. Re7 {[%emt 0:01:06]} a3 {[%emt 0:00:17]} 67. Ra7 {[%emt 0:00:18]} a2 {[%emt 0:00:30]} 68. Bd3 {[%emt 0:00:24]} Kf6 {[%emt 0:00:46]} 69. Be2 {[%emt 0:00:22]} Rc2 {[%emt 0:00:34]} 70. Nh5+ {[%emt 0:01:13]} Ke5 {[%emt 0:00:08]} 71. Ra5+ {[%emt 0:00:13]} Bd5 {[%emt 0:00:11]} 72. Ke3 {[%emt 0:00:46]} Re1 {[%emt 0:00:22]} 73. Nf4 {[%emt 0:00:24]} Rcxe2+ {[%emt 0:00:17]} 74. Nxe2 {[%emt 0:00:14]} a1=Q {[%emt 0:00:07]} 75. Rxa1 {[%emt 0:00:36]} Rxa1 {[%emt 0:00:06]} 76. Kd2 {[%emt 0:00:16]} Ra2+ {[%emt 0:03:14]} 77. Ke3 {[%emt 0:00:07]} Bc4 {[%emt 0:00:00]} 78. Ng3 {[%emt 0:00:08]} Ra3+ {[%emt 0:00:00]} 79. Kf2 {[%emt 0:00:06]} Kf4 {[%emt 0:00:00]} 80. Nh5+ {[%emt 0:02:44]} Kg4 {[%emt 0:00:00]} 81. Nf6+ {[%emt 0:00:00]} Kf5 {[%emt 0:00:00]} 82. Nh5 {[%emt 0:00:00]} Bd5 {[%emt 0:00:00]} 83. Ng3+ {[%emt 0:00:00]} Kg4 {[%emt 0:00:00]} 84. Ne2 {[%emt 0:00:00]} Bf3 {[%emt 0:00:00]} 85. Nd4 {[%emt 0:00:00]} Kf4 {[%emt 0:00:00]} 86. Ne6+ {[%emt 0:00:00]} Ke5 {[%emt 0:00:00]} 87. Ng5 {[%emt 0:00:00]} Bd5 {[%emt 0:00:00]} 88. Ke2 {[%emt 0:00:58]} Kf5 {[%emt 0:00:00]} 89. Nh7 {[%emt 0:00:09]} Ra8 {[%emt 0:00:00]} 90. Kf2 {[%emt 0:00:09]} Rh8 {[%emt 0:00:00]} 91. Kg3 {[%emt 0:00:09]} Rxh7 {[%emt 0:00:00]} 92. Kf2 {[%emt 0:00:05]} Kf4 {[%emt 0:00:00]} 93. Ke1 {[%emt 0:00:12]} Rh2 {[%emt 0:00:00]} 94. Kd1 {[%emt 0:00:07]} Ke3 {[%emt 0:00:00]} 95. Kc1 {[%emt 0:00:04]} Kd3 {[%emt 0:00:00]} 96. Kb1 {[%emt 0:00:04]} Kc3 {[%emt 0:00:00]} 97. Ka1 {[%emt 0:00:07]} Rh1# {[%emt 0:00:00]} 0-1

[Event "48th Ciutat de Badalona Open 2024"]
[Site "Badalona"]
[Date "2024.08.08"]
[Round "7.8"]
[White "Gutierrez Espinosa, Karen"]
[Black "Perpinya Rofes, Lluis Maria"]
[Result "0-1"]
[ECO "B45"]
[WhiteElo "2054"]
[BlackElo "2189"]
[Annotator "RC"]
[PlyCount "98"]
[EventDate "2024.07.29"]
[EventType "swiss"]
[EventCountry "ESP"]
[SourceTitle "playchess.com"]
[Source "ChessBase"]
[SourceQuality "1"]
[TimeControl "5400+30"]

1. e4 {[%emt 0:00:04]} c5 {[%emt 0:00:07]} 2. Nf3 {[%emt 0:00:09]} Nc6 {[%emt 0:00:05]} 3. d4 {[%emt 0:00:08]} cxd4 {[%emt 0:00:08]} 4. Nxd4 {[%emt 0:00:05]} Nf6 {[%emt 0:00:21]} 5. Nc3 {[%emt 0:00:06]} e6 {[%emt 0:00:04]} 6. Ndb5 {[%emt 0:00:22]} Bc5 {[%emt 0:00:12]} 7. Bf4 {[%emt 0:00:42]} O-O {[%emt 0:00:13]} 8. Bc7 {[%emt 0:00:50]} Qe7 {[%emt 0:00:16]} 9. Bd6 {[%emt 0:00:20]} Bxd6 {[%emt 0:00:08]} 10. Qxd6 {[%emt 0:00:05]} Qd8 {[%emt 0:00:12]} 11. O-O-O {[%emt 0:03:00]} a6 {[%emt 0:01:46]} 12. Nd4 {[%emt 0:02:51]} Ne7 {[%emt 0:08:41]} 13. f3 {[%emt 0:14:40]} b5 {[%emt 0:04:31]} 14. Kb1 {[%emt 0:00:28]} Bb7 {[%emt 0:01:36]} 15. Bd3 {[%emt 0:01:19]} Rc8 {[%emt 0:04:40]} 16. Qg3 {[%emt 0:03:11]} Qb6 {[%emt 0:19:22]} 17. Nce2 {[%emt 0:07:26]} d5 {[%emt 0:04:09]} 18. e5 {[%emt 0:04:10]} Ne4 {[%emt 0:00:34]} 19. Qg4 {[%emt 0:08:52]} Nf5 {[%emt 0:16:01]} 20. fxe4 {[%emt 0:24:00]} Nxd4 {[%emt 0:00:59]} 21. Ng3 {[%emt 0:02:27]} dxe4 {[%emt 0:05:59]} 22. Bxe4 {[%emt 0:00:59]} Bxe4 {[%emt 0:04:15]} 23. Nxe4 {[%emt 0:00:40]} Nf5 {[%emt 0:02:10]} 24. c3 {[%emt 0:07:28]} Rfd8 {[%emt 0:03:54]} 25. Rxd8+ {[%emt 0:04:53]} Rxd8 {[%emt 0:00:54]} 26. Rd1 {[%emt 0:00:15]} Ne3 {[%emt 0:03:45]} 27. Rxd8+ {[%emt 0:00:04]} Qxd8 {[%emt 0:00:05]} 28. Qe2 {[%emt 0:00:23]} Nxg2 {[%emt 0:05:49]} 29. Nd6 {[%emt 0:02:11]} Qg5 {[%emt 0:08:23]} 30. Qf3 {[%emt 0:01:09]} Qg6+ {[%emt 0:00:06]} 31. Ka1 {[%emt 0:01:13]} h6 {[%emt 0:01:06]} 32. a3 {[%emt 0:01:16]} Ne1 {[%emt 0:01:29]} 33. Qa8+ {[%emt 0:03:50]} Kh7 {[%emt 0:00:03]} 34. Nxf7 {[%emt 0:02:14]} Nc2+ {[%emt 0:00:47]} 35. Ka2 {[%emt 0:01:38]} Qxf7 {[%emt 0:00:33]} 36. Qxa6 {[%emt 0:00:32]} Qf1 {[%emt 0:02:20]} 37. Qxe6 {[%emt 0:00:16]} Ne3 {[%emt 0:00:23]} 38. Qc6 {[%emt 0:00:53]} Qc4+ {[%emt 0:01:49]} 39. Qxc4 {[%emt 0:00:05]} bxc4 {[%emt 0:00:59]} 40. a4 {[%emt 0:00:30]} Kg8 {[%emt 0:00:30]} 41. b4 {[%emt 0:00:34]} Kf7 {[%emt 0:00:17]} 42. b5 {[%emt 0:01:04]} Nd5 {[%emt 0:00:13]} 43. Ka3 {[%emt 0:00:33]} Ke6 {[%emt 0:00:50]} 44. a5 {[%emt 0:00:05]} Kxe5 {[%emt 0:00:38]} 45. a6 {[%emt 0:00:36]} Nb6 {[%emt 0:00:27]} 46. Kb4 {[%emt 0:00:27]} Kd5 {[%emt 0:00:05]} 47. a7 {[%emt 0:00:31]} g5 {[%emt 0:00:12]} 48. Ka5 {[%emt 0:00:29]} Kc5 {[%emt 0:00:10]} 49. Ka6 {[%emt 0:00:28]} g4 {[%emt 0:00:15]} 0-1

[Event "48th Ciutat de Badalona Open 2024"]
[Site "Badalona"]
[Date "2024.08.08"]
[Round "7.9"]
[White "Weingarten, Phineas"]
[Black "Alasfour, Zaid"]
[Result "1-0"]
[ECO "B08"]
[WhiteElo "1824"]
[BlackElo "1587"]
[Annotator "NA RC"]
[PlyCount "73"]
[EventDate "2024.07.29"]
[EventType "swiss"]
[EventCountry "ESP"]
[SourceTitle "playchess.com"]
[Source "ChessBase"]
[SourceQuality "1"]
[TimeControl "5400+30"]

1. e4 {[%emt 0:00:01]} d6 {[%emt 0:00:05]} 2. d4 {[%emt 0:00:04]} Nf6 {[%emt 0:00:03]} 3. Nc3 {[%emt 0:00:05]} g6 {[%emt 0:00:07]} 4. Nf3 {[%emt 0:01:27]} Bg7 {[%emt 0:00:16]} 5. Bf4 {[%emt 0:00:47]} Nc6 {[%emt 0:01:17]} 6. Qd2 {[%emt 0:01:49]} Bg4 {[%emt 0:01:55]} 7. d5 {[%emt 0:08:36]} Bxf3 {[%emt 0:02:13]} 8. gxf3 {[%emt 0:00:57]} Nb8 {[%emt 0:02:07]} 9. Bh6 {[%emt 0:02:25]} Bxh6 {[%emt 0:01:19]} 10. Qxh6 {[%emt 0:00:14]} c6 {[%emt 0:00:48]} 11. O-O-O {[%emt 0:04:29]} Qb6 {[%emt 0:03:28]} 12. Qd2 {[%emt 0:14:50]} Nbd7 {[%emt 0:01:25]} 13. Na4 {[%emt 0:15:24]} Qc7 {[%emt 0:00:45]} 14. Nc3 {[%emt 0:07:14]} Nc5 {[%emt 0:05:52]} 15. Qd4 {[%emt 0:02:38]} Ncd7 {[%emt 0:07:13]} 16. f4 {[%emt 0:01:34]} Qb6 {[%emt 0:05:06]} 17. Bg2 {[%emt 0:09:43]} Nxe4 {[%emt 0:12:24]} 18. Qxh8+ {[%emt 0:00:20]} Nf8 {[%emt 0:00:02]} 19. Bxe4 {[%emt 0:00:47]} Qxf2 {[%emt 0:00:56]} 20. Qd4 {[%emt 0:00:50]} Qxf4+ {[%emt 0:00:31]} 21. Kb1 {[%emt 0:00:07]} c5 {[%emt 0:01:53]} 22. Qa4+ {[%emt 0:01:15]} Nd7 {[%emt 0:00:17]} 23. Rdf1 {[%emt 0:02:27]} Qd2 {[%emt 0:02:24]} 24. Bd3 {[%emt 0:00:58]} Qg2 {[%emt 0:01:51]} 25. Bb5 {[%emt 0:01:20]} Rd8 {[%emt 0:01:54]} 26. Qf4 {[%emt 0:01:57]} f6 {[%emt 0:00:42]} 27. h4 {[%emt 0:01:31]} Kf7 {[%emt 0:00:17]} 28. Rfg1 {[%emt 0:00:51]} Qxh1 {[%emt 0:01:05]} 29. Rxh1 {[%emt 0:00:05]} Ne5 {[%emt 0:00:11]} 30. Ne4 {[%emt 0:00:20]} a6 {[%emt 0:00:06]} 31. Ng5+ {[%emt 0:00:16]} Kg8 {[%emt 0:00:15]} 32. Ne6 {[%emt 0:00:08]} Rc8 {[%emt 0:00:28]} 33. Be2 {[%emt 0:00:16]} b5 {[%emt 0:00:26]} 34. h5 {[%emt 0:00:23]} g5 {[%emt 0:00:06]} 35. Qf5 {[%emt 0:00:09]} Rb8 {[%emt 0:00:39]} 36. Bd3 {[%emt 0:00:35]} c4 {[%emt 0:00:07]} 37. Qxh7# {[%emt 0:22:08]} 1-0

[Event "48th Ciutat de Badalona Open 2024"]
[Site "Badalona"]
[Date "2024.08.08"]
[Round "7.10"]
[White "Fernandez Egea, Andres"]
[Black "Infiesta Aguila, Agusti"]
[Result "1/2-1/2"]
[ECO "B13"]
[WhiteElo "1874"]
[BlackElo "1836"]
[Annotator "NA RC"]
[PlyCount "48"]
[EventDate "2024.07.29"]
[EventType "swiss"]
[EventCountry "ESP"]
[SourceTitle "playchess.com"]
[Source "ChessBase"]
[SourceQuality "1"]
[TimeControl "5400+30"]

1. e4 {[%emt 0:00:03]} c6 {[%emt 0:00:12]} 2. d4 {[%emt 0:00:10]} d5 {[%emt 0:00:07]} 3. exd5 {[%emt 0:00:11]} cxd5 {[%emt 0:00:08]} 4. c4 {[%emt 0:00:07]} Nf6 {[%emt 0:00:10]} 5. Nc3 {[%emt 0:00:19]} Nc6 {[%emt 0:00:17]} 6. cxd5 {[%emt 0:01:15]} Nxd5 {[%emt 0:00:14]} 7. Nf3 {[%emt 0:02:19]} Bg4 {[%emt 0:00:24]} 8. Qb3 {[%emt 0:02:46]} Bxf3 {[%emt 0:00:14]} 9. gxf3 {[%emt 0:00:53]} e6 {[%emt 0:00:24]} 10. Qxb7 {[%emt 0:02:35]} Nxd4 {[%emt 0:00:25]} 11. Bb5+ {[%emt 0:00:18]} Nxb5 {[%emt 0:00:19]} 12. Qc6+ {[%emt 0:00:12]} Ke7 {[%emt 0:00:35]} 13. Nxb5 {[%emt 0:00:08]} f6 {[%emt 0:05:19]} 14. O-O {[%emt 0:14:44]} Kf7 {[%emt 0:02:55]} 15. Re1 {[%emt 0:06:54]} Qc8 {[%emt 0:01:21]} 16. Nxa7 {[%emt 0:04:14]} Qxc6 {[%emt 0:05:10]} 17. Nxc6 {[%emt 0:00:33]} Bc5 {[%emt 0:00:44]} 18. Be3 {[%emt 0:01:19]} Nxe3 {[%emt 0:01:20]} 19. fxe3 {[%emt 0:00:08]} Rhc8 {[%emt 0:01:39]} 20. b4 {[%emt 0:10:51]} Rxc6 {[%emt 0:01:24]} 21. bxc5 {[%emt 0:00:12]} Rxc5 {[%emt 0:00:14]} 22. Re2 {[%emt 0:00:29]} Ra3 {[%emt 0:00:38]} 23. Kf2 {[%emt 0:00:28]} Rh5 {[%emt 0:03:39]} 24. Kg3 {[%emt 0:01:23]} Rg5+ {[%emt 0:05:03]} 1/2-1/2

[Event "48th Ciutat de Badalona Open 2024"]
[Site "Badalona"]
[Date "2024.08.09"]
[Round "8.1"]
[White "Berdayes Ason, Dylan Isidro"]
[Black "Diaz Perez, Michel Alejandro"]
[Result "1/2-1/2"]
[ECO "C43"]
[WhiteElo "2476"]
[BlackElo "2487"]
[Annotator "TA"]
[PlyCount "21"]
[EventDate "2024.07.29"]
[EventType "swiss"]
[EventCountry "ESP"]
[SourceTitle "playchess.com"]
[Source "ChessBase"]
[SourceQuality "1"]
[TimeControl "5400+30"]

{[%evp 16,21,0,0,0,0,0,0]} 1. e4 {[%emt 0:01:52]} e5 {[%emt 1:31:00]} 2. Nf3 {[%emt 0:00:29]} Nf6 {[%emt 0:00:00]} 3. d4 {[%emt 0:00:11]} Nxe4 {[%emt 0:00:00]} 4. Bd3 {[%emt 0:00:04]} d5 {[%emt 0:00:00]} 5. Nxe5 {[%emt 0:00:04]} Nd7 {[%emt 0:00:00]} 6. Nxf7 {[%emt 0:00:05]} Kxf7 {[%emt 0:00:00]} 7. Qh5+ {[%emt 0:00:06]} Ke6 {[%emt 0:00:00]} 8. Qe2 {[%emt 0:00:04]} Kf7 {[%emt 0:00:00]} 9. Qh5+ {[%emt 0:00:02] The position is equal.} Ke6 {[%emt 0:00:00] [#] Threatens to win with ...Ndf6.} 10. Qe2 {[%emt 0:00:05][%cal Of2f3] Strongly threatening f3!} Kf7 {[%emt 0:00:00] White must now prevent ...Nef6.} 11. Qh5+ {[%emt 1:32:58] A rather calm draw.   OK:         	White=1     	Black=1      Best:        	White=1     	---} 1/2-1/2

[Event "48th Ciutat de Badalona Open 2024"]
[Site "Badalona"]
[Date "2024.08.09"]
[Round "8.2"]
[White "Vitier Vazquez, Cristian"]
[Black "Chavez Suarez, Carlos Alberto"]
[Result "1/2-1/2"]
[ECO "E66"]
[WhiteElo "2357"]
[BlackElo "2279"]
[Annotator "RC"]
[PlyCount "55"]
[EventDate "2024.07.29"]
[EventType "swiss"]
[EventCountry "ESP"]
[SourceTitle "playchess.com"]
[Source "ChessBase"]
[SourceQuality "1"]
[TimeControl "5400+30"]

1. d4 {[%emt 0:03:31]} Nf6 {[%emt 0:00:12]} 2. Nf3 {[%emt 0:00:13]} g6 {[%emt 0:00:09]} 3. c4 {[%emt 0:00:17]} Bg7 {[%emt 0:00:07]} 4. g3 {[%emt 0:00:13]} d6 {[%emt 0:00:11]} 5. Bg2 {[%emt 0:00:08]} O-O {[%emt 0:00:08]} 6. Nc3 {[%emt 0:00:19]} c5 {[%emt 0:00:15]} 7. O-O {[%emt 0:00:25]} Nc6 {[%emt 0:00:32]} 8. d5 {[%emt 0:00:17]} Na5 {[%emt 0:00:08]} 9. Nd2 {[%emt 0:00:08]} e6 {[%emt 0:00:36]} 10. Rb1 {[%emt 0:00:23]} exd5 {[%emt 0:00:09]} 11. cxd5 {[%emt 0:00:02]} Bd7 {[%emt 0:02:05]} 12. Nde4 {[%emt 0:00:46]} Nxe4 {[%emt 0:06:43]} 13. Nxe4 {[%emt 0:00:08]} Qe7 {[%emt 0:00:09]} 14. b4 {[%emt 0:34:06]} cxb4 {[%emt 0:10:24]} 15. Bg5 {[%emt 0:05:30]} f6 {[%emt 0:07:56]} 16. Bf4 {[%emt 0:00:16]} Nc4 {[%emt 0:01:37]} 17. Rxb4 {[%emt 0:02:15]} b5 {[%emt 0:00:12]} 18. Rxc4 {[%emt 0:01:19]} bxc4 {[%emt 0:00:58]} 19. Bxd6 {[%emt 0:00:07]} Qe8 {[%emt 0:00:15]} 20. Bxf8 {[%emt 0:00:21]} Qxf8 {[%emt 0:00:03]} 21. d6 {[%emt 0:02:07]} Rc8 {[%emt 0:00:07]} 22. Qd4 {[%emt 0:11:35]} f5 {[%emt 0:13:04]} 23. Qxa7 {[%emt 0:15:20]} Rd8 {[%emt 0:00:30]} 24. Nc5 {[%emt 0:11:18]} Qxd6 {[%emt 0:00:18]} 25. Nb7 {[%emt 0:00:02]} Qc7 {[%emt 0:00:06]} 26. Qa6 {[%emt 0:00:14]} Bc8 {[%emt 0:00:30]} 27. Nxd8 {[%emt 0:12:05]} Bxa6 {[%emt 0:00:04]} 28. Bd5+ {[%emt 0:00:04]} 1/2-1/2

[Event "48th Ciutat de Badalona Open 2024"]
[Site "Badalona"]
[Date "2024.08.09"]
[Round "8.3"]
[White "Pimpalkhare Vedant"]
[Black "Nagare Kaivalya Sandip"]
[Result "0-1"]
[ECO "A24"]
[WhiteElo "2191"]
[BlackElo "2273"]
[Annotator "RC"]
[PlyCount "80"]
[EventDate "2024.07.29"]
[EventType "swiss"]
[EventCountry "ESP"]
[SourceTitle "playchess.com"]
[Source "ChessBase"]
[SourceQuality "1"]
[TimeControl "5400+30"]

1. Nf3 {[%emt 0:00:07]} Nf6 {[%emt 0:00:41]} 2. c4 {[%emt 0:00:16]} g6 {[%emt 0:00:07]} 3. g3 {[%emt 0:00:48]} Bg7 {[%emt 0:00:06]} 4. Bg2 {[%emt 0:00:05]} O-O {[%emt 0:00:08]} 5. O-O {[%emt 0:00:07]} d6 {[%emt 0:00:03]} 6. Nc3 {[%emt 0:01:04]} e5 {[%emt 0:00:09]} 7. d3 {[%emt 0:04:25]} c6 {[%emt 0:04:23]} 8. Rb1 {[%emt 0:02:53]} Re8 {[%emt 0:00:19]} 9. b4 {[%emt 1:25:15]} d5 {[%emt 0:05:17]} 10. Nd2 {[%emt 0:00:00]} Be6 {[%emt 0:13:25]} 11. b5 {[%emt 0:01:00]} Nbd7 {[%emt 0:04:36]} 12. Ba3 {[%emt 0:00:00]} Nb6 {[%emt 0:08:17]} 13. bxc6 {[%emt 0:00:00]} bxc6 {[%emt 0:00:04]} 14. cxd5 {[%emt 0:00:00]} cxd5 {[%emt 0:02:07]} 15. Nb5 {[%emt 0:00:00]} Qd7 {[%emt 0:03:41]} 16. Re1 {[%emt 0:02:30]} Red8 {[%emt 0:55:07]} 17. Nf3 {[%emt 0:00:00]} Ne8 {[%emt 0:00:00]} 18. Qd2 {[%emt 0:01:00]} Nc7 {[%emt 0:00:00]} 19. Nxc7 {[%emt 0:00:00]} Qxc7 {[%emt 0:00:00]} 20. Rec1 {[%emt 0:00:00]} Qd7 {[%emt 0:00:00]} 21. Qa5 {[%emt 0:01:30]} f6 {[%emt 0:00:00]} 22. Nd2 {[%emt 0:00:00]} Bf8 {[%emt 0:00:00]} 23. Bxf8 {[%emt 0:00:00]} Rxf8 {[%emt 0:00:00]} 24. Nb3 {[%emt 0:00:00]} Bf7 {[%emt 0:00:00]} 25. Nc5 {[%emt 0:00:00]} Qe7 {[%emt 0:00:00]} 26. Bh3 {[%emt 0:00:00]} f5 {[%emt 0:00:00]} 27. Rc2 {[%emt 0:00:00]} Rac8 {[%emt 0:00:00]} 28. Rbc1 {[%emt 0:00:00]} Nc4 {[%emt 0:00:00]} 29. dxc4 {[%emt 0:00:00]} Rxc5 {[%emt 0:00:00]} 30. Qa3 {[%emt 0:00:00]} dxc4 {[%emt 0:00:00]} 31. e4 {[%emt 0:05:00]} fxe4 {[%emt 0:07:30]} 32. Bf1 {[%emt 0:00:30]} Rfc8 {[%emt 0:00:00]} 33. Bxc4 {[%emt 0:00:00]} Kf8 {[%emt 0:00:00]} 34. Qa4 {[%emt 0:01:00]} e3 {[%emt 0:01:30]} 35. fxe3 {[%emt 0:00:00]} Qg5 {[%emt 0:00:00]} 36. Qa3 {[%emt 0:00:00]} Kg7 {[%emt 0:00:00]} 37. Qxa7 {[%emt 0:00:51]} R8c7 {[%emt 0:00:00]} 38. Qa4 {[%emt 0:00:21]} Qxe3+ {[%emt 0:00:00]} 39. Kf1 {[%emt 0:00:06]} Bxc4+ {[%emt 0:00:00]} 40. Rxc4 {[%emt 0:00:12]} Rxc4 {[%emt 0:00:00]} 0-1

[Event "48th Ciutat de Badalona Open 2024"]
[Site "Badalona"]
[Date "2024.08.09"]
[Round "8.4"]
[White "Blasco Coll, Andreu"]
[Black "Vivaan Vishal Shah"]
[Result "1-0"]
[ECO "B22"]
[WhiteElo "2260"]
[BlackElo "2186"]
[Annotator "RC"]
[PlyCount "91"]
[EventDate "2024.07.29"]
[EventType "swiss"]
[EventCountry "ESP"]
[SourceTitle "playchess.com"]
[Source "ChessBase"]
[SourceQuality "1"]
[TimeControl "5400+30"]

1. e4 {[%emt 0:00:04]} c5 {[%emt 0:01:35]} 2. c3 {[%emt 0:00:15]} d5 {[%emt 0:00:05]} 3. exd5 {[%emt 0:00:07]} Qxd5 {[%emt 0:00:11]} 4. d4 {[%emt 0:00:14]} Nc6 {[%emt 0:00:29]} 5. Nf3 {[%emt 0:00:20]} Bf5 {[%emt 0:00:14]} 6. Be3 {[%emt 0:00:24]} Nf6 {[%emt 0:00:17]} 7. Na3 {[%emt 0:00:17]} cxd4 {[%emt 0:00:09]} 8. Bc4 {[%emt 0:00:41]} Qa5 {[%emt 0:00:08]} 9. Nxd4 {[%emt 0:00:32]} Nxd4 {[%emt 0:00:10]} 10. Bxd4 {[%emt 0:00:12]} e5 {[%emt 0:00:10]} 11. Bb5+ {[%emt 0:00:18]} Bd7 {[%emt 0:00:14]} 12. Bxd7+ {[%emt 0:00:17]} Nxd7 {[%emt 0:00:19]} 13. Nc4 {[%emt 0:00:42]} Qd5 {[%emt 0:00:31]} 14. Qe2 {[%emt 0:00:16]} f6 {[%emt 0:07:59]} 15. O-O {[%emt 0:00:38]} Be7 {[%emt 0:00:33]} 16. Rad1 {[%emt 0:01:11]} Qc6 {[%emt 0:01:43]} 17. Be3 {[%emt 0:00:31]} Qe6 {[%emt 0:08:26]} 18. Rd2 {[%emt 0:12:42]} O-O {[%emt 0:05:03]} 19. Rfd1 {[%emt 0:00:45]} Rfd8 {[%emt 0:02:58]} 20. Na5 {[%emt 0:02:27]} Nf8 {[%emt 0:00:30]} 21. Rxd8 {[%emt 0:17:39]} Rxd8 {[%emt 0:00:15]} 22. Rxd8 {[%emt 0:00:13]} Bxd8 {[%emt 0:00:10]} 23. Nxb7 {[%emt 0:02:58]} Bb6 {[%emt 0:00:28]} 24. b4 {[%emt 0:06:55]} Bxe3 {[%emt 0:12:13]} 25. fxe3 {[%emt 0:00:54]} Nd7 {[%emt 0:00:13]} 26. Qd2 {[%emt 0:02:30]} Nb6 {[%emt 0:03:41]} 27. e4 {[%emt 0:21:48]} h5 {[%emt 0:01:28]} 28. Nc5 {[%emt 0:01:13]} Qg4 {[%emt 0:00:37]} 29. a4 {[%emt 0:01:17]} Kh7 {[%emt 0:00:52]} 30. Qd3 {[%emt 0:11:20]} Qg5 {[%emt 0:02:09]} 31. a5 {[%emt 0:01:55]} Qc1+ {[%emt 0:00:31]} 32. Kf2 {[%emt 0:00:09]} Qf4+ {[%emt 0:00:26]} 33. Ke2 {[%emt 0:00:51]} Qxh2 {[%emt 0:00:18]} 34. Qh3 {[%emt 0:02:38]} Qxh3 {[%emt 0:00:08]} 35. gxh3 {[%emt 0:00:02]} Nc4 {[%emt 0:00:13]} 36. Nd7 {[%emt 0:02:30]} Kg8 {[%emt 0:01:09]} 37. Nb8 {[%emt 0:01:06]} Nd6 {[%emt 0:01:10]} 38. Nc6 {[%emt 0:00:39]} a6 {[%emt 0:01:14]} 39. Ke3 {[%emt 0:04:12]} g5 {[%emt 0:01:08]} 40. Nb8 {[%emt 0:00:06]} g4 {[%emt 0:19:16]} 41. hxg4 {[%emt 0:00:05]} h4 {[%emt 0:00:28]} 42. Nxa6 {[%emt 0:02:03]} Nxe4 {[%emt 0:01:28]} 43. Kxe4 {[%emt 0:01:16]} h3 {[%emt 0:00:41]} 44. Kf3 {[%emt 0:00:04]} e4+ {[%emt 0:00:05]} 45. Kg3 {[%emt 0:00:08]} e3 {[%emt 0:00:03]} 46. Nc5 {[%emt 0:00:07]} 1-0